Cogmind - Beta 13 @@@ ROGUE MODE // 2024.04.06 @ 13:12:25 Player: BoomBlip Result: Destroyed by G-50 Soldier with Heavy Laser Performance ------------- Evolutions (3) 1500 Regions Visited (6) 1200 Robots Destroyed (77) 385 Value Destroyed (2213) 2213 Prototype IDs (4) 80 Alien Tech Used (0) 0 Bonus (36) 36 TOTAL SCORE: 5414 Bonus ------- High Alert Combat Kills 36 Cogmind --------- Core Integrity 0/700 Matter 257/300 Energy 290/290 System Corruption 4% Temperature Cool (36) Movement Rolling (230) Ox10 Location -7/Lower Caves Parts ------- > --- POWER (1) -------- Improved Deuterium Engine > --- PROPULSION (4) --- Wheel > --- UTILITY (6) ------ Improved Cooling System Disposable Heat Sink Huge Storage Unit Terrain Scanner Advanced Terrain Scan Processor Improved Light Armor Plating > --- WEAPON (2) ------- Gatling Laser Mini Grenade Launcher > --- INVENTORY (25) --- Light Ion Engine Improved Ion Engine Heavy Ion Engine Light Nuclear Core Improved Heat Sink Improved Heat Sink Improved Cooling System Huge Storage Unit High-capacity Matter Pod (200) Improved Light Armor Plating Hacking Suite Authchip [Propulsion] Authchip [Device] Authchip [Armor] Heavy EM Pulse Gun Shock Rifle Improved Medium Laser Gatling Laser Improved EM Pulse Cannon Advanced Beam Cannon Heavy Assault Rifle Flak Gun Flak Cannon Mini Assault Cannon Powered Hammer Peak State ------------ > --- POWER ------------ Reinforced Deuterium Engine > --- PROPULSION ------- Light Treads Compact Wheel Armored Huge Wheel > --- UTILITY ---------- Improved Cooling System Huge Storage Unit Sensor Array Terrain Scanner Advanced Terrain Scan Processor Hardened Light Armor Plating > --- WEAPON ----------- Advanced Beam Cannon Flak Gun > --- INVENTORY -------- Improved Ion Engine Heavy Ion Engine Improved Deuterium Engine Improved Treads Improved Treads Improved Treads Improved Heat Sink Disposable Heat Sink Huge Storage Unit High-capacity Matter Pod Light Armor Plating Authchip [Propulsion] Authchip [Device] Authchip [Armor] Lightning Gun Improved Medium Laser Improved Medium Laser Gatling Laser Improved EM Pulse Cannon Advanced Beam Cannon Improved Assault Rifle Improved Assault Rifle Mini Assault Cannon Grenade Launcher Mini Grenade Launcher [Rating: 41] Favorites ----------- Power Improved Ion Engine Engine Improved Ion Engine Power Core Light Nuclear Core Propulsion Improved Treads Treads Improved Treads Leg Aluminum Leg Wheel Wheel Utility Huge Storage Unit Device Heat Sink Storage Huge Storage Unit Processor Advanced Terrain Scan Processor Protection Hardened Light Armor Plating Weapon Improved Assault Rifle Energy Gun Improved Medium Laser Energy Cannon Advanced Beam Cannon Ballistic Gun Improved Assault Rifle Launcher Mini Grenade Launcher Build | -11 -10 -9 -9 -8 -7 -7 ------- Run | Yrd Mat Mat Sto Mat Fac Low Slots Evolved 6 | . . 2 . 2 2 . Power . | . . . . . . . Propulsion 2 | . . 1 . 1 . . Utility 4 | . . 1 . 1 2 . Weapon . | . . . . . . . Parts Attached 88 | 2 10 25 7 7 36 1 Power 11 | . 3 2 1 . 5 . Engine 10 | . 3 2 1 . 4 . Core 1 | . . . . . 1 . Reactor . | . . . . . . . Propulsion 24 | 2 2 5 . 5 10 . Treads 9 | . . 3 . 5 1 . Leg . | . . . . . . . Wheel 15 | 2 2 2 . . 9 . Hover . | . . . . . . . Flight . | . . . . . . . Utility 25 | . 3 7 2 2 11 . Device 10 | . . 4 . 1 5 . Storage 4 | . 2 1 . . 1 . Processor 2 | . . . . . 2 . Hackware . | . . . . . . . Protection 9 | . 1 2 2 1 3 . Artifact . | . . . . . . . Weapon 28 | . 2 11 4 . 10 1 Energy Gun 9 | . 1 3 1 . 4 . Energy Cannon 3 | . . 1 2 . . . Ballistic Gun 13 | . 1 6 1 . 5 . Ballistic Cannon . | . . . . . . . Launcher 3 | . . 1 . . 1 1 Special Weapon . | . . . . . . . Impact Weapon . | . . . . . . . Slashing Weapon . | . . . . . . . Piercing Weapon . | . . . . . . . Special Melee Weapon . | . . . . . . . Unidentified Prototypes 4 | . . 2 2 . . . Parts Lost 19 | . . 1 . 1 14 3 Power 2 | . . . . . 2 . Propulsion 10 | . . 1 . 1 5 3 Utility 3 | . . . . . 3 . Weapon 4 | . . . . . 4 . Highest Loss Streak 11 | . . 1 . 1 11 3 To Critical Strikes . | . . . . . . . Average Slot Usage (%) 96 | . 99 98 99 99 89 96 Engine 9 | . 14 11 10 9 6 7 Treads 15 | . . 14 33 35 4 . Wheel 13 | . 28 18 . . 17 26 Device 14 | . . 11 11 18 22 23 Storage 9 | . 14 11 11 9 7 7 Processor 2 | . . . . . 6 7 Protection 9 | . 13 11 11 9 6 7 Energy Gun 7 | . 14 9 9 . 4 7 Energy Cannon 2 | . . . 2 9 3 . Ballistic Gun 9 | . 14 11 10 9 5 5 Naked Turns . | . . . . . . . Heaviest Build 112 | 12 90 99 100 102 112 104 Greatest Support 92 | 20 20 69 69 92 86 46 Greatest Overweight (x) 10 | . 4 4 1 1 6 10 Average Overweight (x) 1 | . . 2 1 1 1 2 Largest Inventory Capacity 25 | 8 25 25 25 25 25 25 Average Capacity 23 | 8 13 25 25 25 25 25 Most Carried 25 | 6 15 25 25 25 25 25 Average Carried 21 | 6 9 21 24 24 22 25 Final Capacity 25 | 8 25 25 25 25 25 25 Final Carried 25 | 6 15 25 25 25 25 25 Class Distribution -------------------- 55% | Mutant 29% | Scavenger-Mutant 15% | Skirmisher Dominant Class ---------------- Mutant | -10/Materials Scavenger-Mutant | -9/Materials Mutant | -9/Storage Mutant | -8/Materials Skirmisher | -7/Factory Scavenger-Mutant | -7/Lower Caves Resources | -11 -10 -9 -9 -8 -7 -7 ----------- Run | Yrd Mat Mat Sto Mat Fac Low Matter Collected 1622 | 229 133 551 126 130 453 . Remotely . | . . . . . . . Salvage Created 2631 | 86 228 798 342 156 953 68 Parts 154 | . 19 57 19 10 47 2 Haulers Intercepted 5 | . 1 2 1 1 . . Recyclers Shooed 1 | . 1 . . . . . Parts Field Recycled . | . . . . . . . Retrieved Matter . | . . . . . . . Parts Self-Destructed . | . . . . . . . Prevented . | . . . . . . . Kills | -11 -10 -9 -9 -8 -7 -7 ------- Run | Yrd Mat Mat Sto Mat Fac Low Combat Hostiles Destroyed 59 | . 6 23 8 2 18 2 Guns 42 | . 6 14 8 . 13 1 Cannons 3 | . . . . 2 1 . AOE 13 | . . 8 . . 4 1 Classes Destroyed 14 | 2 4 3 . . 5 . Worker 6 | . 1 2 . . 3 . Builder 3 | . . 1 . . 2 . Tunneler 1 | 1 . . . . . . Hauler 5 | . 1 2 1 1 . . Recycler 2 | 1 . . . . 1 . Watcher 1 | . . . . . 1 . Swarmer 17 | . 3 11 3 . . . Grunt 19 | . 3 7 2 . 5 2 Brawler 2 | . . 1 . . 1 . Protector 1 | . . . . . 1 . Sentry 13 | . . 4 3 2 4 . Specialist 1 | . . . . . 1 . Hunter 4 | . . . . . 4 . Programmer 2 | . . . . . 2 . Best Kill Streak 11 | 2 5 11 5 1 5 2 Combat Bots Only 8 | . 4 8 5 1 4 2 Max Kills in Single Turn 6 | 1 1 6 1 1 3 1 Gunslinging . | . . . . . . . Exploded 4 | . . 4 . . 2 1 Melee . | . . . . . . . Uniques/NPCs Destroyed . | . . . . . . . Combat | -11 -10 -9 -9 -8 -7 -7 -------- Run | Yrd Mat Mat Sto Mat Fac Low Hostile Shots Fired 574 | . 19 113 36 18 352 36 Missed 192 | . 3 33 9 5 129 13 Damage Taken 4797 | . 137 962 392 179 2748 379 Core 915 | . . 152 50 . 628 85 Absorbed by Shields . | . . . . . . . Core Remaining (%) 87 | 100 100 . 49 100 . . Volleys Fired 182 | 3 21 64 34 9 46 5 Largest 2 | 2 2 2 2 2 2 2 Hottest 136 | 70 70 76 112 91 136 110 Shots Fired 352 | 6 42 128 65 18 84 9 Gun 308 | 6 42 126 57 9 63 5 Cannon 33 | . . . 8 9 16 . Launcher 11 | . . 2 . . 5 4 Special . | . . . . . . . Kinetic 147 | 3 21 66 28 9 20 . Thermal 183 | 3 21 60 31 9 54 5 Explosive 11 | . . 2 . . 5 4 Electromagnetic 11 | . . . 6 . 5 . Robot Hit Streak 20 | 4 6 14 11 12 20 2 Robot Miss Streak 7 | 1 4 3 1 1 7 4 Penetration Max . | . . . . . . . Secondary Targets 3 | . 1 1 1 . . . Max Gunslinging Chain 1 | . 1 1 1 . . . Shots Hit Robots 232 | 4 23 88 34 15 63 5 Core Hits 172 | 3 14 40 12 5 89 9 Critical Kills . | . . . . . . . Critical Parts Destroyed . | . . . . . . . Critical Strikes 2 | . . . 1 . 1 . Burn 2 | . . . 1 . 1 . Melee Attacks . | . . . . . . . Impact . | . . . . . . . Slashing . | . . . . . . . Piercing . | . . . . . . . Sneak Attacks . | . . . . . . . Combat Hostiles . | . . . . . . . Follow-up Attacks . | . . . . . . . Damage Inflicted 5490 | 47 268 1467 541 276 2524 367 Guns 3237 | 47 268 991 541 113 1188 89 Cannons 365 | . . . . 163 202 . Explosions 1888 | . . 476 . . 1134 278 Melee . | . . . . . . . Ramming . | . . . . . . . Kinetic 1185 | 23 143 325 287 113 294 . Thermal 2347 | 24 125 666 254 163 1026 89 Explosive 1888 | . . 476 . . 1134 278 Electromagnetic 70 | . . . . . 70 . Impact . | . . . . . . . Slashing . | . . . . . . . Piercing . | . . . . . . . Highest Corruption 4 | . . . 2 . 4 4 Average Corruption 2 | . . . 2 . 2 4 Corruption Purged . | . . . . . . . Corruption Blocked . | . . . . . . . Effects 14 | . . . . . 13 1 Message Errors 5 | . . . . . 5 . Matter Fused 4 | . . . . . 4 . Heat Flow Errors 2 | . . . . . 1 1 Parts Rejected 1 | . . . . . 1 . Data Loss (minor) 2 | . . . . . 2 . Overload Shots . | . . . . . . . Overflow Damage 24 | . . 24 . . . . Projectiles . | . . . . . . . Explosions 24 | . . 24 . . . . Melee . | . . . . . . . Knockbacks . | . . . . . . . Impact . | . . . . . . . Kinetic . | . . . . . . . Secondary . | . . . . . . . Self-Inflicted Damage 228 | . . . . . 228 . Shots 2 | . . . . . 2 . Rammed . | . . . . . . . Targets Rammed . | . . . . . . . Kicked . | . . . . . . . Crushed . | . . . . . . . Highest Temperature 214 | 27 102 88 96 13 214 129 Average Temperature 27 | 14 25 30 19 8 51 34 Received Heat Transfer 1236 | . 30 327 81 63 474 261 Siege Activations . | . . . . . . . Robots Corrupted . | . . . . . . . Combat Hostiles . | . . . . . . . Parts Fried 1 | . . . . . 1 . Impact Corruptions . | . . . . . . . Robots Melted 1 | . . 1 . . . . Combat Hostiles 1 | . . 1 . . . . Parts Melted 11 | . . 2 2 . 7 . Heat Transferred 5302 | 74 311 1630 629 296 2162 200 Parts Sabotaged . | . . . . . . . Parts Stolen . | . . . . . . . Parts Stripped . | . . . . . . . Power Chain Reactions . | . . . . . . . Alert | -11 -10 -9 -9 -8 -7 -7 ------- Run | Yrd Mat Mat Sto Mat Fac Low Peak Influence 551 | 10 212 551 277 219 288 . Initial 169 | . 6 89 169 117 99 . Average 205 | 6 131 319 198 156 172 . Maximum Alert Level 2 | . 1 2 1 1 1 . Low Security (%) 61 | 100 84 25 58 94 70 . Level 1 31 | . 15 43 41 5 29 . Level 2 7 | . . 31 . . . . Level 3 . | . . . . . . . Level 4 . | . . . . . . . Level 5 . | . . . . . . . High Security . | . . . . . . . Max Security . | . . . . . . . Squads Dispatched 7 | . 1 2 1 . 3 . Investigation 1 | . . 1 . . . . Extermination 1 | . . . . . 1 . Reinforcement 3 | . 1 1 1 . . . Assault . | . . . . . . . Garrison 2 | . . . . . 2 . Intercept . | . . . . . . . Searches Triggered . | . . . . . . . Construction Impeded . | . . . . . . . Haulers Reinforced . | . . . . . . . Active Scanning Responses . | . . . . . . . Cargo Convoy Interrupts 1 | . . . . . 1 . Stealth | -11 -10 -9 -9 -8 -7 -7 --------- Run | Yrd Mat Mat Sto Mat Fac Low Distress Signals 6 | . 2 2 1 1 . . Communications Jammed . | . . . . . . . Distress Signals . | . . . . . . . Times Spotted 95 | . 11 28 10 5 34 7 Peak Tracking Total 12 | . 4 5 4 4 12 7 Tactical Retreats 1 | . 1 . . . . . Traps | -11 -10 -9 -9 -8 -7 -7 ------- Run | Yrd Mat Mat Sto Mat Fac Low Traps Triggered 4 | . . 1 1 . 2 . Indirectly . | . . . . . . . Trap Hack Attempts . | . . . . . . . Triggered . | . . . . . . . Disarmed . | . . . . . . . Reprogrammed . | . . . . . . . Reused . | . . . . . . . Traps Extracted . | . . . . . . . Installed . | . . . . . . . Triggered 1 | . . . . . 1 . Machines | -11 -10 -9 -9 -8 -7 -7 ---------- Run | Yrd Mat Mat Sto Mat Fac Low Machines Disabled 8 | . . 2 3 . 3 . Max in Single Turn 2 | . . 1 1 . 2 . Machines Repaired . | . . . . . . . Machines Dismantled . | . . . . . . . Machines Sabotaged . | . . . . . . . Overloaded Fab Kills . | . . . . . . . Hacking | -11 -10 -9 -9 -8 -7 -7 --------- Run | Yrd Mat Mat Sto Mat Fac Low Machines Accessed 11 | . 4 2 3 1 1 . Terminals 10 | . 3 2 3 1 1 . Fabricators . | . . . . . . . Repair Stations . | . . . . . . . Recycling Units 1 | . 1 . . . . . Scanalyzers . | . . . . . . . Garrison Access . | . . . . . . . Total Hacks 27 | . 10 5 7 2 3 . Successful 10 | . 5 1 2 1 1 . Failed 17 | . 5 4 5 1 2 . Catastrophic 5 | . 2 1 1 1 . . Database Lockouts . | . . . . . . . Manual 17 | . 8 2 5 2 . . Terminals 26 | . 9 5 7 2 3 . Fabricators . | . . . . . . . Repair Stations . | . . . . . . . Recycling Units 1 | . 1 . . . . . Scanalyzers . | . . . . . . . Garrison Access . | . . . . . . . Terminal Hacks 4 | . 2 1 . . 1 . Record 1 | . . 1 . . . . Robot Analysis 1 | . 1 . . . . . Open DSF 1 | . . . . . 1 . Unreport Threat 1 | . 1 . . . . . Fabricator Hacks . | . . . . . . . Repair Station Hacks . | . . . . . . . Recycling Unit Hacks 1 | . 1 . . . . . Report Inventory 1 | . 1 . . . . . Scanalyzer . | . . . . . . . Garrison Access Hacks . | . . . . . . . Unauthorized Hacks 5 | . 2 . 2 1 . . Terminals 5 | . 2 . 2 1 . . Botnet 5 | . 2 . 2 1 . . Fabricators . | . . . . . . . Repair Stations . | . . . . . . . Recycling Units . | . . . . . . . Scanalyzers . | . . . . . . . Garrison Access . | . . . . . . . Data Cores Recovered . | . . . . . . . Used . | . . . . . . . Hacking Detections 10 | . 3 2 3 1 1 . Full Trace Events . | . . . . . . . Feedback Events . | . . . . . . . Feedback Blocked . | . . . . . . . Robot Schematics Acquired . | . . . . . . . Robots Built . | . . . . . . . Authchips . | . . . . . . . Time . | . . . . . . . Total Robot Build Rating . | . . . . . . . Part Schematics Acquired . | . . . . . . . Parts Built . | . . . . . . . Authchips . | . . . . . . . Time . | . . . . . . . Total Part Build Rating . | . . . . . . . Parts Repaired . | . . . . . . . Time . | . . . . . . . Parts Recycled . | . . . . . . . Recycled Matter . | . . . . . . . Retrieved Matter . | . . . . . . . Retrieved Components . | . . . . . . . Parts Scanalyzed . | . . . . . . . Part Schematics Acquired . | . . . . . . . Parts Damaged . | . . . . . . . Bothacking | -11 -10 -9 -9 -8 -7 -7 ------------ Run | Yrd Mat Mat Sto Mat Fac Low Used RIF Installer . | . . . . . . . Robots Hacked . | . . . . . . . Non-combat . | . . . . . . . Combat . | . . . . . . . Robot Hacks Applied . | . . . . . . . Relay Couplers Released . | . . . . . . . Fabnet Peak Effective % . | . . . . . . . Robots Rewired . | . . . . . . . Allies Hacked . | . . . . . . . Hacks Repelled . | . . . . . . . Allies | -11 -10 -9 -9 -8 -7 -7 -------- Run | Yrd Mat Mat Sto Mat Fac Low Total Allies . | . . . . . . . Largest Group . | . . . . . . . Highest-Rated Group . | . . . . . . . Highest-Rated Ally . | . . . . . . . Total Orders . | . . . . . . . Ally Attacks . | . . . . . . . Total Damage . | . . . . . . . Kills . | . . . . . . . Allies Corrupted . | . . . . . . . Allies Melted . | . . . . . . . Intel | -11 -10 -9 -9 -8 -7 -7 ------- Run | Yrd Mat Mat Sto Mat Fac Low Robot Analysis Total 1 | . 1 . . . . . Derelict Logs Recovered . | . . . . . . . Drone Launches . | . . . . . . . Drone Recoveries . | . . . . . . . Exploration | -11 -10 -9 -9 -8 -7 -7 ------------- Run | Yrd Mat Mat Sto Mat Fac Low Turns Passed 3547 | 32 342 812 796 353 1128 84 Spaces Moved 1793 | 25 266 345 282 131 686 58 Core . | . . . . . . . Treads 557 | . . 118 282 131 26 . Legs . | . . . . . . . Wheels 1236 | 25 266 227 . . 660 58 Hover . | . . . . . . . Flight . | . . . . . . . Fastest Speed 80 | 80 80 110 240 240 115 115 Average Speed 155 | 80 94 165 240 240 128 117 Slowest Speed 480 | 80 140 480 240 240 240 230 Overloaded Moves . | . . . . . . . Propulsion Burnouts . | . . . . . . . Robots Hopped . | . . . . . . . Cave-ins Triggered . | . . . . . . . Exploration Rate (%) 25 | 3 37 31 47 17 23 17 Regions Visited 6 Branch Regions 2 Pre-discovered Areas . | . . . . . . . Known Exits Taken . | . . . . . . . Unknown Exits Taken 6 | 1 1 1 1 1 1 . Scrap Searched . | . . . . . . . Spaces Dug . | . . . . . . . Terrain Destroyed 59 | . . 4 . . 40 15 Melee . | . . . . . . . Projectile . | . . . . . . . AOE 59 | . . 4 . . 40 15 Terrain Rammed . | . . . . . . . Walls Destroyed . | . . . . . . . Machines Disabled . | . . . . . . . Actions | -11 -10 -9 -9 -8 -7 -7 --------- Run | Yrd Mat Mat Sto Mat Fac Low Total 2240 | 29 318 477 346 155 851 64 Wait 45 | . . 14 . 1 30 . Move 1787 | 24 265 344 281 130 685 58 Hop . | . . . . . . . Pick Up 58 | . 11 13 9 3 22 . Fast Attach 20 | . 1 6 2 2 9 . Attach 19 | . . 4 . 2 13 . Detach 1 | . . . 1 . . . Swap 49 | 2 9 15 5 3 14 1 Drop 71 | . 11 17 14 5 24 . Fire 182 | 3 21 64 34 9 46 5 Melee . | . . . . . . . Ram . | . . . . . . . Kick . | . . . . . . . Crush . | . . . . . . . Escape Stasis 8 | . . . . . 8 . Rewire . | . . . . . . . Trap . | . . . . . . . Miscellaneous . | . . . . . . . Route ------- -11/Scrapyard -10/Materials (discovered 2 exits: *Mat / [*Min]) -9/Materials -9/Storage -8/Materials -7/Factory -7/Lower Caves History --------- Turn | Location | Event 4 | -11/Scrapyard | Discovered new exit (range 2) 33 | -11/Scrapyard | Entered Materials 110 | -10/Materials | Discovered new exit (range 4) 326 | -10/Materials | Discovered new exit (range 4) 329 | -10/Materials | Build established: Mutant 375 | -10/Materials | Entered another Materials area 375 | -9/Materials | Evolved 2 slots: Propulsion x1, Utility x1 654 | -9/Materials | Destroyed 8 combat bots 749 | -9/Materials | Build established: Scavenger-Mutant 961 | -9/Materials | Destroyed 8 combat bots 1111 | -9/Materials | Discovered new exit (range 16) 1187 | -9/Materials | Entered Storage 1329 | -9/Storage | Build established: Mutant 1722 | -9/Storage | Core integrity fell below 50% 1967 | -9/Storage | Discovered new exit (range 8) 1983 | -9/Storage | Entered Materials 1983 | -8/Materials | Evolved 2 slots: Propulsion x1, Utility x1 2267 | -8/Materials | Discovered new exit (range 16) 2336 | -8/Materials | Entered Factory 2336 | -7/Factory | Evolved 2 slots: Utility x2 2701 | -7/Factory | Build established: Skirmisher 2946 | -7/Factory | Cargo convoy interrupted 2947 | -7/Factory | Garrison activated, responded to threat 2978 | -7/Factory | Core integrity fell below 50% 3039 | -7/Factory | Lost 11 parts (1p4n3u3w) 3122 | -7/Factory | Garrison activated, responded to threat 3285 | -7/Factory | Core integrity fell below 20% 3442 | -7/Factory | Discovered new exit (range 10) 3464 | -7/Factory | Entered Lower Caves 3466 | -7/Lower Caves | Build established: Scavenger-Mutant 3548 | -7/Lower Caves | Destroyed by G-50 Soldier with Heavy Laser Last Messages --------------- 03409_ K-01 Serf collects debris. 03413_ Acquired 10 matter. 03413_ K-01 Serf collects debris. 03420_ Dropped Imp. Medium Laser. 03422_ K-01 Serf destroyed. 03426_ Acquired Wheel. 03428_ Acquired 25 matter. 03442_ EXIT=FOUND 03459_ EEOQ2YKTZ%AK4 KFU U M7 C24 E7IN1BND,< LOCATION=UNKNOWN GOAL=ESCAPE 03491_ System corrupted: Heat flow error (+181). 03523_ Com. Wheel destroyed. 03533_ Wheel destroyed. 03536_ Critical hit (Burn: +37). 03540_ G-47 Trooper destroyed. 03544_ Critical hit (Burn: +37). 03546_ G-47 Trooper destroyed. 03548_ Critical hit (Burn: +37). [Achievement: This Is Interesting...] Map ----- +----------------------------------------------------+ | ?????????????????????????????????????????????????? | | ?????????????????????????????????????????????????? | | ?????????????????????????????????????????????????? | | ?????????????????????????????????????????????????? | | ?????????????????????????????????????????????????? | | ?????????????????????????????????????????????????? | | ?????????????????????????????????????????????????? | | ?????????????????????????????????????????????????? | | ?????????????????????????????????????????????????? | | ?????????????????????????????????????????????????? | | ?????????????????????????????????????????????????? | | ?????????????????????????????????????????????????? | | ????????????????????? ??#??#????????????????????? | | ???????????????? #??# ??#??#???#????????????????? | | ?????????????? #### ? ###?#?#?????????????????? | | ?????????????? ???#?#???###????????????##? | | ?????????????? ? ?##?#?##????## ???# # | | ??????????????? ? ????? ???? | | ???????????????? ? ## ? | | ????????????? ? ?# ? ?? #?#?? | | ?????????????? ??# ??## #####? | | ???????????? ?? ??# g ## ###?#? | | ?????????????? ? ## gg ??# ###??# | | ???????????????????# [?### ##?## | | ?????????????????### #### #??# | | ??????????????#???# @ ### ##?# | | ?????????????###?# ## [ ## ##### | | ????????????????#? ? ######g# % # ##### | | ?????????????##? ??? ##?## =% # | | ???????????????? ???# | | ??????????????? ?????#?## | | ?????????????? ? ##### #### | | ?????????????? #??###?##?# ## ##### | | ???????????????#?######??# #### ##?### | | ?????????????? ??##?#??#?# ##### ##### ##??## | | ?????????????? ??#??##???#####?### ##?### ##### | | ????????????????#???? ###???#?#?## #?#?###### | | ????????????????#?# ?##?#####?## #?#?#?## | | ??????????????????? ???#####?##?? #?????## | | ?????????????????? ?? #?##????? ### #### | | ????????????????? ? ? ##???#?#?? ??? ##### | | ????????????????????#???? ? ##? ? #??### | | ????????????????????#?????????# ? #??#?## | | ????????????????????????#?? ??## ## ###?### | | ????????????????????????? ??#??# #?? ##?#### | | ????????????????????????? ?????#####?# ###?### | | ??????????????????????????????????#?#? #???# | | ?????????????????????????????????#???# ??## # | | ??????????????????????????????????????? ???## # | | ??????????????????????????????????????? #### | +----------------------------------------------------+ Best States ------------- Heat Dissipation 75 Coolant Potential 50 Energy Generation 16 Energy Capacity 290 Matter Stores 300 Matter Capacity 300 Sight Range 16 Robot Scan Range 14 Terrain Scan Range 14 Terrain Scan Density 210 Armor Coverage 150 Evasion (%) 44 Recoil Reduction 4 Authchip Count 3 Item Schematics ----------------- None Robot Schematics ------------------ None Fabricated ------------ Nothing Alien Tech Used ----------------- None Achievements -------------- This Is Interesting... Challenges ------------ None Game ------ Seed SupersonicWaveRigger Manual? 0 Play Time 00:33:31 Cumulative 90.6 hours Start 2024.04.06 @ 01:11:21 End 2024.04.06 @ 13:12:25 Sessions 1 Manual Loads 0 Difficulty Rogue Special Mode None Game No. 137 Rogue 125 Adventurer 10 Explorer 2 Win Type - Total 1 Types 1/0/0/0/0/0/0/0/0 Lore% 25 Gallery% 53 Achievement% 40 Wizard Run 0 Options --------- Layout 0 ASCII 0 Keyboard 0 Movement Arrows Keybinds 0 Fullscreen 1 Font 36/Smallcaps Map View 76x50 Zoom Use 0% Tactical HUD 1 Map Filters NONE Filters NONE Steam 1 RUN: c24fd769-abe3-4812-b591-b0bc73e7de52